Cogmind - Beta 13 @@@ ROGUE MODE // 2024.04.09 @ 00:23:18 Player: Tenderz Result: Destroyed by G-47 Trooper with Particle Gun Performance ------------- Evolutions (2) 1000 Regions Visited (3) 600 Robots Destroyed (44) 220 Value Destroyed (1099) 1099 Prototype IDs (2) 40 Alien Tech Used (0) 0 Bonus (0) 0 TOTAL SCORE: 2959 Bonus ------- None Cogmind --------- Core Integrity 0/550 Matter 275/300 Energy 100/100 System Corruption 15% Temperature Cool (9) Movement Core (350) Ox6 Location -8/Materials Parts ------- > --- POWER (1) -------- (None) > --- PROPULSION (3) --- (None) > --- UTILITY (4) ------ Large Storage Unit Hacking Suite Hacking Suite > --- WEAPON (3) ------- (None) > --- INVENTORY (15) --- Improved Ion Engine Improved Ion Engine Reinforced Ion Engine Light Nuclear Core Improved Terrain Scan Processor Targeting Computer Recalibrator Heavy EM Pulse Gun Heavy EM Pulse Gun Beam Cannon Peak State ------------ > --- POWER ------------ Reinforced Ion Engine > --- PROPULSION ------- Aluminum Leg Aluminum Leg Aluminum Leg > --- UTILITY ---------- Large Storage Unit Improved Terrain Scanner Hacking Suite Hacking Suite > --- WEAPON ----------- Beam Rifle Beam Cannon Assault Rifle > --- INVENTORY -------- Improved Ion Engine Reinforced Ion Engine Targeting Computer Hardened Light Armor Plating Shield Generator Hacking Suite Hacking Suite Recalibrator Heavy EM Pulse Gun Heavy EM Pulse Gun Particle Gun Light Assault Rifle Grenade Launcher Improved Datajack [Rating: 22] Favorites ----------- Power Reinforced Ion Engine Engine Reinforced Ion Engine Propulsion Aluminum Leg Leg Aluminum Leg Wheel Wheel Utility Hacking Suite Device Sensor Array Storage Large Storage Unit Processor Signal Interpreter Hackware Hacking Suite Protection Hardened Light Armor Plating Weapon Particle Gun Energy Gun Particle Gun Energy Cannon Beam Cannon Ballistic Gun Assault Rifle Launcher Grenade Launcher Special Melee Weapon Improved Datajack Build | -11 -10 -9 -8 ------- Run | Yrd Mat Mat Mat Slots Evolved 4 | . . 2 2 Power . | . . . . Propulsion 1 | . . 1 . Utility 2 | . . 1 1 Weapon 1 | . . . 1 Parts Attached 63 | 10 16 22 15 Power 3 | 1 1 1 . Engine 3 | 1 1 1 . Core . | . . . . Reactor . | . . . . Propulsion 11 | 3 2 6 . Treads . | . . . . Leg 6 | . . 6 . Wheel 5 | 3 2 . . Hover . | . . . . Flight . | . . . . Utility 19 | 2 5 6 6 Device 8 | 1 1 4 2 Storage 2 | 1 1 . . Processor 1 | . 1 . . Hackware 4 | . . 2 2 Protection 4 | . 2 . 2 Artifact . | . . . . Weapon 30 | 4 8 9 9 Energy Gun 13 | 3 5 3 2 Energy Cannon 2 | . . 1 1 Ballistic Gun 10 | 1 3 2 4 Ballistic Cannon . | . . . . Launcher 3 | . . 2 1 Special Weapon . | . . . . Impact Weapon . | . . . . Slashing Weapon . | . . . . Piercing Weapon . | . . . . Special Melee Weapon 2 | . . 1 1 Unidentified Prototypes . | . . . . Parts Lost 20 | . . 5 15 Power 1 | . . . 1 Propulsion 6 | . . 3 3 Utility 4 | . . . 4 Weapon 9 | . . 2 7 Highest Loss Streak 5 | . . 4 5 To Critical Strikes . | . . . . Average Slot Usage (%) 92 | . 98 97 74 Engine 11 | . 14 11 8 Leg 14 | . . 28 9 Wheel 9 | . 27 2 . Device 5 | . 2 6 6 Storage 11 | . 14 11 9 Processor 5 | . 7 6 . Hackware 7 | . . 8 13 Protection 2 | . 3 . 4 Energy Gun 9 | . 12 9 6 Energy Cannon 2 | . . 4 3 Ballistic Gun 10 | . 15 7 10 Naked Turns . | . . . . Heaviest Build 42 | 14 35 37 42 Greatest Support 30 | 26 20 30 30 Greatest Overweight (x) 13 | 1 1 1 13 Average Overweight (x) . | . . 1 4 Largest Inventory Capacity 15 | 8 15 15 15 Average Capacity 12 | 7 8 15 15 Most Carried 15 | 7 10 15 15 Average Carried 10 | 4 8 12 12 Final Capacity 15 | 8 15 15 15 Final Carried 15 | 7 10 15 10 Class Distribution -------------------- 56% | Mutant 23% | Hacker-Mutant 13% | Scavenger-Mutant 4% | Hacker-Skirmisher Dominant Class ---------------- Mutant | -10/Materials Hacker-Mutant | -9/Materials Mutant | -8/Materials Resources | -11 -10 -9 -8 ----------- Run | Yrd Mat Mat Mat Matter Collected 1079 | 312 280 224 263 Remotely . | . . . . Salvage Created 1402 | 77 452 358 515 Parts 82 | 10 22 19 31 Haulers Intercepted . | . . . . Recyclers Shooed 4 | . 1 1 2 Parts Field Recycled . | . . . . Retrieved Matter . | . . . . Parts Self-Destructed . | . . . . Prevented . | . . . . Kills | -11 -10 -9 -8 ------- Run | Yrd Mat Mat Mat Combat Hostiles Destroyed 34 | . 8 12 14 Guns 21 | . 8 3 10 Cannons 3 | . . 2 1 AOE 10 | . . 7 3 Classes Destroyed 10 | 1 5 1 3 Worker 1 | . . . 1 Tunneler 4 | 4 . . . Recycler 2 | . 2 . . Mechanic 1 | . 1 . . Watcher 2 | . 1 1 . Swarmer 13 | . 3 5 5 Grunt 13 | . 5 5 3 Brawler 2 | . . . 2 Duelist 2 | . . . 2 Sentry 4 | . . 2 2 Best Kill Streak 5 | 1 3 5 5 Combat Bots Only 5 | . 3 5 5 Max Kills in Single Turn 2 | 1 1 2 2 Gunslinging . | . . . . Exploded 2 | . . 2 2 Melee . | . . . . Uniques/NPCs Destroyed . | . . . . Combat | -11 -10 -9 -8 -------- Run | Yrd Mat Mat Mat Hostile Shots Fired 286 | . 55 104 127 Missed 69 | . 16 27 26 Damage Taken 2884 | . 366 913 1605 Core 822 | . 87 170 565 Absorbed by Shields 147 | . . . 147 Regen/Repaired (Parts) 61 | . 61 . . Core Remaining (%) 74 | 100 65 57 . Volleys Fired 128 | 21 41 27 39 Largest 3 | 2 2 2 3 Hottest 136 | 80 85 121 136 Shots Fired 255 | 42 82 52 79 Gun 229 | 42 82 39 66 Cannon 20 | . . 9 11 Launcher 6 | . . 4 2 Special . | . . . . Kinetic 108 | 15 41 16 36 Thermal 112 | 6 41 24 41 Explosive 6 | . . 4 2 Electromagnetic 29 | 21 . 8 . Robot Hit Streak 11 | 6 7 11 7 Robot Miss Streak 4 | 4 4 3 2 Penetration Max . | . . . . Secondary Targets 2 | . . 1 1 Max Gunslinging Chain 1 | . . 1 1 Shots Hit Robots 160 | 27 49 33 51 Core Hits 79 | 5 20 21 33 Critical Kills . | . . . . Critical Parts Destroyed 1 | . . . 1 Critical Strikes 6 | . 2 1 3 Burn 5 | . 2 1 2 Destroy 1 | . . . 1 Melee Attacks 3 | . . 1 2 Impact . | . . . . Slashing . | . . . . Piercing . | . . . . Sneak Attacks . | . . . . Combat Hostiles . | . . . . Follow-up Attacks . | . . . . Damage Inflicted 2898 | 328 713 853 1004 Guns 1951 | 296 645 332 678 Cannons 142 | . . 72 70 Explosions 724 | 32 . 436 256 Melee . | . . . . Ramming 81 | . 68 13 . Kinetic 737 | 75 243 87 332 Thermal 1158 | 78 402 262 416 Explosive 652 | . . 396 256 Electromagnetic 270 | 175 . 95 . Impact . | . . . . Slashing . | . . . . Piercing . | . . . . Highest Corruption 15 | . 1 . 15 Average Corruption 3 | . 1 . 13 Corruption Purged . | . . . . Corruption Blocked . | . . . . Effects 15 | . 6 . 9 Message Errors 1 | . 1 . . Matter Fused 5 | . 2 . 3 Heat Flow Errors 2 | . . . 2 Energy Discharges 1 | . 1 . . Data Loss (minor) 1 | . . . 1 Data Loss (major) 2 | . 1 . 1 Alerts 1 | . 1 . . Weapon Failures 2 | . . . 2 Overload Shots . | . . . . Overflow Damage 20 | 20 . . . Projectiles . | . . . . Explosions 20 | 20 . . . Melee . | . . . . Knockbacks . | . . . . Impact . | . . . . Kinetic . | . . . . Secondary . | . . . . Self-Inflicted Damage 222 | . 32 133 57 Shots 7 | . . 5 2 Rammed 8 | . 6 . 2 Targets Rammed 10 | . 6 2 2 Kicked 2 | . . 2 . Crushed . | . . . . Highest Temperature 455 | 40 410 345 455 Average Temperature 115 | 20 161 86 104 Received Heat Transfer 609 | . 54 180 375 Effects 9 | . 4 1 4 Shutdowns 2 | . . 1 1 Energy Bleed 1 | . 1 . . Interference 3 | . 1 . 2 Matter Decay 1 | . 1 . . Short Circuit 2 | . 1 . 1 Siege Activations . | . . . . Robots Corrupted . | . . . . Combat Hostiles . | . . . . Parts Fried 2 | 1 . 1 . Impact Corruptions . | . . . . Robots Melted . | . . . . Combat Hostiles . | . . . . Parts Melted 5 | . 1 2 2 Heat Transferred 3049 | 150 1110 642 1147 Parts Sabotaged . | . . . . Parts Stolen . | . . . . Parts Stripped . | . . . . Power Chain Reactions 2 | 1 . 1 . Alert | -11 -10 -9 -8 ------- Run | Yrd Mat Mat Mat Peak Influence 363 | 20 243 363 349 Initial 69 | . 13 64 69 Average 166 | 7 121 217 192 Maximum Alert Level 1 | . 1 1 1 Low Security (%) 57 | 100 76 35 58 Level 1 42 | . 23 64 41 Level 2 . | . . . . Level 3 . | . . . . Level 4 . | . . . . Level 5 . | . . . . High Security . | . . . . Max Security . | . . . . Squads Dispatched 5 | . 2 . 3 Investigation 2 | . 2 . . Extermination . | . . . . Reinforcement . | . . . . Assault . | . . . . Garrison 3 | . . . 3 Intercept . | . . . . Searches Triggered . | . . . . Construction Impeded . | . . . . Haulers Reinforced . | . . . . Active Scanning Responses . | . . . . Cargo Convoy Interrupts . | . . . . Stealth | -11 -10 -9 -8 --------- Run | Yrd Mat Mat Mat Distress Signals 5 | . . 2 3 Communications Jammed . | . . . . Distress Signals . | . . . . Times Spotted 57 | . 15 18 24 Peak Tracking Total 8 | . 5 8 7 Tactical Retreats 4 | . 1 2 1 Traps | -11 -10 -9 -8 ------- Run | Yrd Mat Mat Mat Traps Triggered 1 | . 1 . . Indirectly . | . . . . Trap Hack Attempts . | . . . . Triggered . | . . . . Disarmed . | . . . . Reprogrammed . | . . . . Reused . | . . . . Traps Extracted . | . . . . Installed . | . . . . Triggered . | . . . . Machines | -11 -10 -9 -8 ---------- Run | Yrd Mat Mat Mat Machines Disabled 3 | . 1 1 1 Max in Single Turn 1 | . 1 1 1 Machines Repaired . | . . . . Machines Dismantled . | . . . . Machines Sabotaged . | . . . . Overloaded Fab Kills . | . . . . Hacking | -11 -10 -9 -8 --------- Run | Yrd Mat Mat Mat Machines Accessed 13 | . 7 5 1 Terminals 8 | . 4 4 . Fabricators . | . . . . Repair Stations 1 | . 1 . . Recycling Units 3 | . 2 1 . Scanalyzers 1 | . . . 1 Garrison Access . | . . . . Total Hacks 44 | . 27 15 2 Successful 27 | . 17 8 2 Failed 17 | . 10 7 . Catastrophic . | . . . . Database Lockouts . | . . . . Manual 3 | . . 3 . Terminals 28 | . 14 14 . Fabricators . | . . . . Repair Stations 6 | . 6 . . Recycling Units 8 | . 7 1 . Scanalyzers 2 | . . . 2 Garrison Access . | . . . . Terminal Hacks 13 | . 6 7 . Record 2 | . 1 1 . Robot Analysis 1 | . 1 . . Prototype ID Bank 1 | . . 1 . Emergency Access Points 1 | . . 1 . Terminal Index 1 | . 1 . . Alert Level 2 | . 1 1 . Maintenance Status 1 | . . 1 . Patrol Status 1 | . . 1 . Investigation Status 1 | . 1 . . Reinforcement Status 1 | . 1 . . Zone Layout 1 | . . 1 . Fabricator Hacks . | . . . . Repair Station Hacks 5 | . 5 . . Scan Component 3 | . 3 . . Repair 2 | . 2 . . Recycling Unit Hacks 7 | . 6 1 . Process 1 | . 1 . . Report Inventory 3 | . 3 . . Retrieve Matter 1 | . 1 . . Retrieve Components 2 | . 1 1 . Scanalyzer 2 | . . . 2 Insert Component 1 | . . . 1 Analyze 1 | . . . 1 Garrison Access Hacks . | . . . . Unauthorized Hacks . | . . . . Terminals . | . . . . Fabricators . | . . . . Repair Stations . | . . . . Recycling Units . | . . . . Scanalyzers . | . . . . Garrison Access . | . . . . Data Cores Recovered . | . . . . Used . | . . . . Hacking Detections 11 | . 7 3 1 Full Trace Events 2 | . 2 . . Feedback Events . | . . . . Feedback Blocked . | . . . . Robot Schematics Acquired . | . . . . Robots Built . | . . . . Authchips . | . . . . Time . | . . . . Total Robot Build Rating . | . . . . Part Schematics Acquired 1 | . . . 1 Parts Built . | . . . . Authchips . | . . . . Time . | . . . . Total Part Build Rating . | . . . . Parts Repaired 2 | . 2 . . Time 68 | . 68 . . Parts Recycled . | . . . . Recycled Matter 192 | . 192 . . Retrieved Matter . | . . . . Retrieved Components 13 | . 3 10 . Parts Scanalyzed 1 | . . . 1 Part Schematics Acquired 1 | . . . 1 Parts Damaged . | . . . . Bothacking | -11 -10 -9 -8 ------------ Run | Yrd Mat Mat Mat Used RIF Installer . | . . . . Robots Hacked 2 | . . 1 1 Non-combat . | . . . . Combat 2 | . . 1 1 Robot Hacks Applied 2 | . . 1 1 parse_system 2 | . . 1 1 Relay Couplers Released . | . . . . Fabnet Peak Effective % . | . . . . Robots Rewired . | . . . . Allies Hacked . | . . . . Hacks Repelled . | . . . . Allies | -11 -10 -9 -8 -------- Run | Yrd Mat Mat Mat Total Allies . | . . . . Largest Group . | . . . . Highest-Rated Group . | . . . . Highest-Rated Ally . | . . . . Total Orders . | . . . . Ally Attacks . | . . . . Total Damage . | . . . . Kills . | . . . . Allies Corrupted . | . . . . Allies Melted . | . . . . Intel | -11 -10 -9 -8 ------- Run | Yrd Mat Mat Mat Robot Analysis Total 1 | . 1 . . Derelict Logs Recovered . | . . . . Drone Launches . | . . . . Drone Recoveries . | . . . . Exploration | -11 -10 -9 -8 ------------- Run | Yrd Mat Mat Mat Turns Passed 2545 | 208 743 1050 544 Spaces Moved 1203 | 143 419 526 115 Core 39 | 3 . . 36 Treads . | . . . . Legs 510 | . . 431 79 Wheels 654 | 140 419 95 . Hover . | . . . . Flight . | . . . . Fastest Speed 50 | 50 80 95 190 Average Speed 147 | 85 84 172 341 Slowest Speed 700 | 100 95 190 700 Overloaded Moves . | . . . . Propulsion Burnouts . | . . . . Robots Hopped . | . . . . Cave-ins Triggered . | . . . . Exploration Rate (%) 23 | 6 45 27 16 Regions Visited 3 Branch Regions . Pre-discovered Areas . | . . . . Known Exits Taken 1 | . 1 . . Unknown Exits Taken 2 | 1 . 1 . Scrap Searched . | . . . . Spaces Dug . | . . . . Terrain Destroyed 41 | 5 . 23 13 Melee . | . . . . Projectile . | . . . . AOE 41 | 5 . 23 13 Terrain Rammed . | . . . . Walls Destroyed . | . . . . Machines Disabled . | . . . . Actions | -11 -10 -9 -8 --------- Run | Yrd Mat Mat Mat Total 1710 | 185 732 609 184 Wait 239 | . 228 7 4 Move 1200 | 142 418 525 115 Hop . | . . . . Pick Up 45 | 10 10 18 7 Fast Attach 14 | 6 6 2 . Attach 17 | 1 . 5 11 Detach . | . . . . Swap 32 | 3 10 15 4 Drop 22 | 2 13 7 . Fire 128 | 21 41 27 39 Melee 3 | . . 1 2 Ram 8 | . 6 . 2 Kick 2 | . . 2 . Crush . | . . . . Escape Stasis . | . . . . Rewire . | . . . . Trap . | . . . . Miscellaneous . | . . . . Route ------- -11/Scrapyard -10/Materials -9/Materials -8/Materials History --------- Turn | Location | Event 17 | -11/Scrapyard | Discovered new exit (range 16) 209 | -11/Scrapyard | Entered Materials 304 | -10/Materials | Build established: Mutant 636 | -10/Materials | Repaired Particle Gun 673 | -10/Materials | Repaired Broken Wheel 876 | -10/Materials | Discovered new exit (range 3) 949 | -10/Materials | Identified exit to Materials 952 | -10/Materials | Entered another Materials area 952 | -9/Materials | Evolved 2 slots: Propulsion x1, Utility x1 1109 | -9/Materials | Lost 4 parts (2n2w) 1428 | -9/Materials | Discovered new exit (range 10) 1885 | -9/Materials | Build established: Hacker-Mutant 2002 | -9/Materials | Entered another Materials area 2002 | -8/Materials | Evolved 2 slots: Utility x1, Weapon x1 2191 | -8/Materials | Garrison activated, responded to threat 2247 | -8/Materials | Core integrity fell below 50% 2260 | -8/Materials | Lost 5 parts (2n1u2w) 2423 | -8/Materials | System corruption reached 10% 2455 | -8/Materials | Lost 5 parts (2u3w) 2506 | -8/Materials | Core integrity fell below 20% 2546 | -8/Materials | Destroyed by G-47 Trooper with Particle Gun Last Messages --------------- System corrupted: Heat flow error (+152). Hrd. Light Armor Plating destroyed. Critical hit (Burn: +37). System corrupted: Hvy. Assault Rifle jammed. System corrupted: Matter fused (-8). K-01 Serf cleans the Electrolysis Chamber. W-25 Informer sends out distress signal. K-01 Serf destroyed. Rnf. Ion Engine destroyed. M-13 Machinist repairs Y-45 Defender. Critical hit (Burn: +37). K-01 Serf collects debris. System corrupted: Matter fused (-6). M-13 Machinist repairs Y-45 Defender. Y-45 Defender destroyed. R-06 Scavenger collects Sml. Matter Pod. K-01 Serf collects debris. U-05 Engineer builds a Door. Hvy. Assault Rifle destroyed. R-06 Scavenger collects Lgt. Ion Engine. Map ----- +----------------------------------------------------+ | ?????????????????????????????????????????????????? | | ?????????????????????????????????????????????????? | | ?????????????????????????????????????????????????? | | ?????????????????????????????????????????????????? | | ?????????????????????????????????????????????????? | | ?????????????????????????????????????????????????? | | ?????????????????????????????????????????????????? | | ?????????????????????????????????????????????????? | | ?????????????????????????????????????????????????? | | ????????????????????? ???????????????????????????? | | ???????????????????????? ?????????????????????? | | ???????????????????????? #????????????????????? | | ?????????? ???????? ???? ###??????????????????? | | ??????????????????? ? ??????????????????? | | ??????????????????? ???? ??????????????????? | | ???????????????????" ?? u ??? ?????????????? | | ??????????#########+##### """ ?????????????? | | ??????????# % #g """ ??????????????? | | ??????????# "" """ # """ ???????????????? | | ??????????# "" """""" # k ???????????????? | | ?#? ? ? ??# "" "" " # =rr ????????????????? | | ????????#?? # """ ""?????????????? | | ???????????? % = # """ """????????????? | | ????##############+###### [m """ """ #????????? | | ??? # [ % !%* #????????? | | ???# % @![ #????????? | | "?? # u #????????? | | ?"" + ##### ###########+#############??????????? | | """ # #???# ##?## % #????????????????????? | | ""??# #???# ##?## "" % #????????????????????? | | ????# #####+##??# "G """ #????????????????????? | | ????# # #??# "" """ #????????????????????? | | #???# # #??# """ #????????????????????? | | #???# # "" #??# * #????????????????????? | | ????# %+= S"" #??# #?#??????????????????? | | ????# # "" #??# #????????????????????? | | ????# # #??###########????????????????????? | | ????# ########?????????????????????????????????? | | ????# #???###??????#???????????????????????????? | | ????# #????????????????????????????????????????? | | ????# #????#?#?????????????????????????????????? | | ##### #????????????????????????????????????????? | | # #????????#???????????????????????????????? | | # #????#???????????????????????????????????? | | # #????????????????????????????????????????? | | # #????????#???????????????????????????????? | | """ + #???????#????????????????????????????????? | | """ # #????????????????????????????????????????? | | """ # #????????????????????????????????????????? | | # #????????????????????????????????????????? | +----------------------------------------------------+ Best States ------------- Heat Dissipation 31 Energy Generation 12 Energy Capacity 265 Matter Stores 300 Matter Capacity 300 Sight Range 16 Robot Scan Range 14 Terrain Scan Range 16 Terrain Scan Density 10 ECM Strength 1 Armor Coverage 150 Evasion (%) 44 Offensive Hacking 20 Item Schematics ----------------- Hvy. EM Pulse Gun | -8/Materials | Scanalyzed Robot Schematics ------------------ None Fabricated ------------ Nothing Alien Tech Used ----------------- None Achievements -------------- System Compromised Challenges ------------ None Game ------ Seed CompositeCloakingMace Manual? 0 Play Time 00:37:40 Cumulative 4.3 hours Start 2024.04.08 @ 23:46:18 End 2024.04.09 @ 00:23:18 Sessions 1 Manual Loads 0 Difficulty Rogue Special Mode None Game No. 7 Rogue 7 Adventurer 0 Explorer 0 Win Type - Total 0 Types 0/0/0/0/0/0/0/0/0 Lore% 2 Gallery% 8 Achievement% 5 Wizard Run 0 Options --------- Layout 1 ASCII 0 Keyboard 0 Movement Arrows Keybinds 0 Fullscreen 1 Font 32/SmallcapsGlow Map View 50x35 Zoom Use 0% Tactical HUD 0 Map Filters NONE Filters NONE Steam 1 RUN: 1ce8e5ee-db36-4437-8c26-185cf29b9609